fUSD/lending_fUSD_20250814
["ID","MTS","AMOUNT","RATE_DAILY","PERIOD"]
[379236225,1755207039285,-159.26595556,0.00024283,2]
[379236226,1755207039294,-500.0,0.00024283,2]
[379236227,1755207039304,-500.0,0.00024283,2]
[379236228,1755207039313,-500.0,0.00024283,2]
[379236229,1755207039322,-500.0,0.00024283,2]
[379236230,1755207039332,-500.0,0.00024283,2]
[379236231,1755207039342,-500.0,0.00024283,2]
[379236232,1755207039352,-500.0,0.00024283,2]
[379236233,1755207039362,-500.0,0.00024283,2]
[379236234,1755207039372,-504.53149598,0.00024283,2]
[379236235,1755207039382,-500.0,0.00024283,2]
[379236236,1755207039392,-162.08062459,0.00024283,2]
[379236237,1755207039402,-500.0,0.00024283,2]
[379236238,1755207039412,-9579.22880736,0.00024304,2]
[379236239,1755207039421,-24827.19796834,0.00024349,2]
[379236240,1755207039432,-500.0,0.00024352,2]
[379236241,1755207039441,-158.51367142,0.00024411,2]
[379236242,1755207039452,-150.0,0.00024436,2]
[379236243,1755207039463,-150.0,0.00024436,2]
[379236244,1755207039476,-150.0,0.00024436,2]
[379236245,1755207039494,-150.0,0.00024436,2]
[379236246,1755207039504,-150.0,0.00024436,2]
[379236247,1755207039515,-150.0,0.00024436,2]
[379236248,1755207039525,-150.0,0.00024436,2]
[379236249,1755207039536,-150.0,0.00024436,2]
[379236250,1755207039546,-150.0,0.00024436,2]
[379236251,1755207039557,-150.0,0.00024436,2]
[379236252,1755207039567,-150.0,0.00024436,2]
[379236253,1755207039577,-150.0,0.00024436,2]
[379236254,1755207039587,-150.0,0.00024436,2]
[379236255,1755207039597,-170.15123974,0.00024436,2]
[379236257,1755207039606,-150.0,0.00024436,2]
[379236258,1755207039617,-500.0,0.00024455,2]
[379236260,1755207039627,-150.0,0.00024465,4]
[379236261,1755207039637,-313.37886092,0.00024482,2]
[379236263,1755207039649,-150.0,0.00024482,4]
[379236264,1755207039659,-150.0,0.00024493,4]
[379236265,1755207039668,-150.0,0.00024507,4]
[379236266,1755207039678,-504.0,0.00024511,2]
[379236267,1755207039688,-500.0,0.00024511,2]
[379236268,1755207039697,-500.0,0.00024511,2]
[379236269,1755207039707,-150.0,0.00024518,4]
[379236270,1755207039717,-150.0,0.00024522,4]
[379236271,1755207039728,-150.0,0.00024526,4]
[379236272,1755207039738,-150.0,0.00024529,4]
[379236273,1755207039748,-150.0,0.0002454,4]
[379236274,1755207039759,-150.0,0.0002454,4]
[379236275,1755207039774,-1363.59096306,0.00024542,2]
[379236276,1755207039796,-500.0,0.00024545,2]
[379236277,1755207039811,-500.0,0.00024545,2]
[379236278,1755207039829,-6280.0,0.00024545,2]
[379236279,1755207039847,-150.0,0.00024545,2]
[379236280,1755207039864,-500.0,0.00024545,2]
[379236281,1755207039878,-500.0,0.00024545,2]
[379236282,1755207039895,-150.0,0.00024545,2]
[379236283,1755207039913,-150.0,0.00024551,4]
[379236284,1755207039929,-150.0,0.00024571,4]
[379236285,1755207039948,-150.0,0.00024576,4]
[379236286,1755207039964,-150.0,0.00024579,4]
[379236287,1755207039981,-150.0,0.0002458,4]
[379236288,1755207039997,-150.0,0.00024586,4]
[379236289,1755207040010,-150.0,0.00024595,4]
[379236290,1755207040025,-150.0,0.00024595,4]
[379236291,1755207040040,-150.0,0.000246,4]
[379236292,1755207040052,-150.0,0.00024609,4]
[379236293,1755207040071,-226.38,0.00024616,2]
[379236294,1755207040083,-150.0,0.00024617,4]
[379236295,1755207040096,-150.0,0.00024623,4]
[379236296,1755207040110,-500.0,0.00024626,2]
[379236298,1755207040140,-150.0,0.00024638,4]
[379236299,1755207040155,-150.0,0.00024644,4]
[379236300,1755207040168,-150.0,0.00024644,4]
[379236301,1755207040182,-150.0,0.0002465,4]
[379236302,1755207040196,-7000.0,0.0002465,2]
[379236303,1755207040210,-2000.0,0.00024658,15]
[379236304,1755207040225,-1229.0,0.00024658,2]
[379236305,1755207040240,-150.0,0.00024658,2]
[379236306,1755207040254,-150.0,0.00024667,4]
[379236307,1755207040269,-150.0,0.0002467,4]
[379236308,1755207040284,-150.0,0.00024682,4]
[379236309,1755207040299,-1251.0,0.00024685,2]
[379236310,1755207040314,-2283.0,0.00024685,2]
[379236311,1755207040328,-513.32,0.00024685,2]
[379236312,1755207040342,-6779.63589485,0.00024689,2]
[379236313,1755207040356,-150.0,0.00024696,4]
[379236314,1755207040372,-4270.1645999,0.000247,2]
[379236315,1755207040386,-150.0,0.00024707,4]
[379236316,1755207040401,-150.0,0.00024707,4]
[379236317,1755207040416,-3596.09491032,0.00024713,2]
[379236318,1755207040430,-1361993.1902336,0.00024714,2]
[379236319,1755207040446,-4639.5462162,0.00024714,2]
[379236320,1755207040461,-160680.1733367,0.00024714,2]
[379236321,1755207040476,-4792.2129366,0.00024714,2]
[379236322,1755207040490,-3194.8086245,0.00024714,2]
[379236323,1755207040505,-1643.761679,0.00024714,7]
[379236324,1755207040519,-1679.138121,0.00024714,7]
[379236325,1755207040535,-1643.761679,0.00024714,7]
[379236326,1755207040549,-1679.138121,0.00024714,7]
[379236327,1755207040563,-453.541334,0.00024714,7]
[379236328,1755207040578,-453.541334,0.00024714,7]
[379236329,1755207040592,-151.0,0.00024714,7]
[379236330,1755207040605,-151.0,0.00024714,7]
[379236331,1755207040625,-193.46271,0.00024714,7]
[379236332,1755207040648,-193.46271,0.00024714,7]
[379236333,1755207040665,-658421.8408619,0.00024714,2]
[379236334,1755207040680,-150.0,0.00024716,4]
[379236335,1755207040695,-151.0,0.00024719,2]
[379236336,1755207040709,-154.6736558,0.0002472,2]
[379236337,1755207040724,-150.0,0.00024721,4]
[379236338,1755207040740,-150.0,0.00024724,4]
[379236339,1755207040755,-1000.0,0.00024728,2]
[379236340,1755207040771,-1000.0,0.00024728,2]
[379236341,1755207040785,-1000.0,0.00024728,2]
[379236342,1755207040800,-1000.0,0.00024728,2]
[379236343,1755207040815,-1000.0,0.00024728,2]
[379236344,1755207040830,-1000.0,0.00024728,2]
[379236345,1755207040844,-1000.0,0.00024728,2]
[379236346,1755207040860,-167.45,0.00024736,2]
[379236347,1755207040876,-150.0,0.00024737,4]
[379236348,1755207040891,-150.0,0.00024749,4]
[379236349,1755207040905,-150.0,0.00024749,4]
[379236350,1755207040920,-150.0,0.00024753,4]
[379236351,1755207040935,-150.0,0.00024755,4]
[379236352,1755207040949,-150.0,0.00024755,4]
[379236353,1755207040964,-600.0,0.00024763,2]
[379236354,1755207040978,-160.0,0.00024763,2]
[379236355,1755207040992,-151.0,0.00024763,2]
[379236356,1755207041007,-304.0,0.00024763,2]
[379236357,1755207041024,-1500.0,0.00024763,2]
[379236358,1755207041038,-9274.81107495,0.00024763,2]
[379236359,1755207041052,-1500.0,0.00024763,2]
[379236360,1755207041067,-277.35679052,0.00024763,2]
[379236361,1755207041082,-200.0,0.00024763,2]
[379236362,1755207041096,-200.0,0.00024763,2]
[379236363,1755207041110,-200.0,0.00024763,2]
[379236364,1755207041125,-200.0,0.00024763,2]
[379236365,1755207041139,-200.0,0.00024763,2]
[379236366,1755207041153,-200.0,0.00024763,2]
[379236367,1755207041168,-158.12459321,0.00024763,2]
[379236368,1755207041183,-200.0,0.00024763,2]
[379236369,1755207041198,-200.0,0.00024763,2]
[379236370,1755207041213,-200.0,0.00024763,2]
[379236371,1755207041228,-200.0,0.00024763,2]
[379236372,1755207041242,-250.0,0.00024763,2]
[379236373,1755207041256,-200.0,0.00024763,2]
[379236374,1755207041272,-250.0,0.00024763,2]
[379236375,1755207041286,-3000.0,0.00024763,2]
[379236376,1755207041301,-250.0,0.00024763,2]
[379236377,1755207041315,-200.0,0.00024763,2]
[379236378,1755207041330,-250.0,0.00024763,2]
[379236379,1755207041345,-200.0,0.00024763,2]
[379236380,1755207041358,-300.0,0.00024763,2]
[379236381,1755207041372,-250.0,0.00024763,2]
[379236382,1755207041387,-200.0,0.00024763,2]
[379236383,1755207041401,-250.0,0.00024763,2]
[379236384,1755207041416,-200.0,0.00024763,2]
[379236385,1755207041429,-250.0,0.00024763,2]
[379236386,1755207041443,-151.0,0.00024763,2]
[379236387,1755207041457,-200.0,0.00024763,2]
[379236388,1755207041471,-250.0,0.00024763,2]
[379236389,1755207041485,-156.587,0.00024763,2]
[379236390,1755207041499,-200.0,0.00024763,2]
[379236391,1755207041515,-250.0,0.00024763,2]
[379236392,1755207041529,-169.95030453,0.00024763,2]
[379236393,1755207041543,-200.0,0.00024763,2]
[379236394,1755207041557,-250.0,0.00024763,2]
[379236395,1755207041570,-200.0,0.00024763,2]
[379236396,1755207041585,-250.0,0.00024763,2]
[379236397,1755207041599,-200.0,0.00024763,2]
[379236398,1755207041613,-151.0,0.00024763,2]
[379236400,1755207041626,-500.0,0.00024763,2]
[379236402,1755207041641,-1012.74253208,0.00024763,2]
[379236403,1755207041657,-455.86758873,0.00024763,2]
[379236404,1755207041670,-309.98419327,0.00024763,2]
[379236405,1755207041685,-500.0,0.00024763,2]
[379236406,1755207041699,-500.0,0.00024763,2]
[379236407,1755207041713,-579.59505164,0.00024763,2]
[379236408,1755207041727,-151.0,0.00024763,2]
[379236409,1755207041741,-340.0,0.00024763,2]
[379236410,1755207041755,-150.0,0.00024763,4]
[379236411,1755207041770,-9579.22880736,0.00024764,2]
[379236412,1755207041783,-150.0,0.00024765,4]
[379236413,1755207041797,-500.0,0.00024773,2]
[379236414,1755207041811,-24827.19796834,0.00024774,2]
[379236415,1755207041826,-150.0,0.00024782,4]
[379236416,1755207041841,-504.0,0.00024785,2]
[379236417,1755207041856,-500.0,0.00024785,2]
[379236418,1755207041870,-500.0,0.00024785,2]
[379236419,1755207041885,-1017.40402903,0.0002479,2]
[379236420,1755207041899,-150.0,0.00024793,4]
[379236421,1755207041914,-150.0,0.00024798,4]
[379236422,1755207041928,-156.151956,0.000248,7]
[379236423,1755207041942,-151.0,0.000248,7]
[379236424,1755207041956,-151.0,0.000248,7]
[379236425,1755207041969,-500.0,0.000248,2]
[379236426,1755207041983,-500.0,0.000248,2]
[379236427,1755207041996,-500.0,0.000248,2]
[379236428,1755207042010,-500.0,0.000248,2]
[379236429,1755207042023,-500.0,0.000248,2]
[379236430,1755207042038,-539.58967048,0.000248,2]
[379236431,1755207042052,-500.0,0.000248,2]
[379236432,1755207042066,-500.0,0.000248,2]
[379236433,1755207042080,-151.0,0.000248,7]
[379236434,1755207042097,-151.0,0.000248,7]
[379236435,1755207042110,-502.9880039,0.000248,2]
[379236436,1755207042123,-447.15,0.000248,7]
[379236437,1755207042137,-447.15,0.000248,7]
[379236438,1755207042150,-178.599921,0.000248,7]
[379236439,1755207042163,-178.599921,0.000248,7]
[379236440,1755207042176,-150.0,0.000248,2]
[379236441,1755207042189,-500.0,0.000248,2]
[379236442,1755207042201,-500.0,0.000248,2]
[379236443,1755207042214,-207.77686672,0.000248,2]
[379236444,1755207042228,-1661.244562,0.000248,7]
[379236445,1755207042241,-1661.244562,0.000248,7]
[379236446,1755207042254,-1643.761679,0.000248,7]
[379236447,1755207042268,-1679.138121,0.000248,7]
[379236448,1755207042281,-1643.761679,0.000248,7]
[379236449,1755207042293,-1679.138121,0.000248,7]
[379236450,1755207042306,-3387.133945,0.000248,7]
[379236451,1755207042318,-3387.133945,0.000248,7]
[379236452,1755207042332,-453.541334,0.000248,7]
[379236453,1755207042344,-453.541334,0.000248,7]
[379236454,1755207042357,-151.0,0.000248,7]
[379236455,1755207042371,-151.0,0.000248,7]
[379236456,1755207042383,-3500.0,0.000248,9]
[379236457,1755207042396,-211.86673127,0.000248,7]
[379236458,1755207042408,-193.46271,0.000248,7]
[379236459,1755207042421,-193.46271,0.000248,7]
[379236460,1755207042433,-363072.518844,0.000248,2]
[379236461,1755207042446,-160.0,0.000248,7]
[379236462,1755207042458,-50688.0,0.000248,2]
[379236463,1755207042470,-348.53,0.00024804,2]
[379236464,1755207042483,-150.0,0.0002481,4]
[379236465,1755207042495,-150.0,0.00024811,4]
[379236466,1755207042508,-220.71,0.00024815,2]
[379236468,1755207042535,-9617.97908473,0.00024818,2]
[379236469,1755207042552,-500.0,0.00024819,2]
[379236472,1755207042568,-500.0,0.00024819,2]
[379236475,1755207042585,-6280.0,0.00024819,2]
[379236477,1755207042599,-200.0,0.00024819,2]
[379236480,1755207042614,-500.0,0.00024819,2]
[379236482,1755207042630,-500.0,0.00024819,2]
[379236485,1755207042646,-150.44347967,0.00024819,2]
[379236486,1755207042660,-158.51367142,0.00024823,2]
[379236487,1755207042675,-1000.0,0.00024831,2]
[379236489,1755207042690,-1000.0,0.00024831,2]
[379236490,1755207042703,-506.49765689,0.00024831,2]
[379236491,1755207042717,-1000.0,0.00024831,2]
[379236492,1755207042733,-323.90526316,0.00024831,2]
[379236493,1755207042747,-960.73578863,0.00024831,2]
[379236494,1755207042761,-1000.0,0.00024831,2]
[379236495,1755207042775,-502.91827005,0.00024831,2]
[379236496,1755207042795,-502.65686821,0.00024831,2]
[379236497,1755207042810,-529.61775295,0.00024831,2]
[379236498,1755207042824,-1000.0,0.00024831,2]
[379236499,1755207042837,-1000.0,0.00024831,2]
[379236500,1755207042851,-1000.0,0.00024831,2]
[379236501,1755207042864,-1000.0,0.00024831,2]
[379236502,1755207042877,-1000.0,0.00024831,2]
[379236503,1755207042891,-593.39219059,0.00024831,2]
[379236504,1755207042903,-1000.0,0.00024831,2]
[379236505,1755207042916,-804.19826541,0.00024831,2]
[379236506,1755207042930,-1001.07328926,0.00024831,2]
[379236507,1755207042942,-502.78091185,0.00024831,2]
[379236508,1755207042956,-150.0,0.0002484,4]
[379236509,1755207042969,-150.0,0.00024843,4]
[379236510,1755207042981,-150.0,0.00024847,4]
[379236511,1755207042994,-150.0,0.00024853,4]
[379236512,1755207043007,-150.0,0.00024853,4]
[379236513,1755207043020,-150.0,0.00024857,4]
[379236515,1755207043034,-150.0,0.00024864,4]
[379236516,1755207043048,-150.0,0.00024869,4]
[379236517,1755207043061,-4538.60246293,0.00024873,2]
[379236518,1755207043075,-151.0,0.00024875,2]
[379236519,1755207043087,-452.80970839,0.00024883,2]
[379236520,1755207043100,-150.0,0.00024888,4]
[379236521,1755207043113,-150.0,0.00024888,4]
[379236522,1755207043126,-150.0,0.00024898,4]
[379236523,1755207043139,-500.0,0.000249,2]
[379236524,1755207043151,-151.0,0.000249,7]
[379236525,1755207043164,-186.330195,0.000249,7]
[379236526,1755207043176,-151.0,0.000249,7]
[379236527,1755207043189,-151.0,0.000249,7]
[379236528,1755207043201,-447.15,0.000249,7]
[379236529,1755207043214,-447.15,0.000249,7]
[379236530,1755207043227,-178.599921,0.000249,7]
[379236531,1755207043239,-178.599921,0.000249,7]
[379236532,1755207043253,-1661.244562,0.000249,7]
[379236534,1755207043268,-1661.244562,0.000249,7]
[379236536,1755207043281,-1643.761679,0.000249,7]
[379236538,1755207043294,-1679.138121,0.000249,7]
[379236539,1755207043307,-1643.761679,0.000249,7]
[379236540,1755207043320,-1679.138121,0.000249,7]
[379236541,1755207043333,-3387.133945,0.000249,7]
[379236542,1755207043346,-3387.133945,0.000249,7]
[379236543,1755207044066,-453.541334,0.000249,7]
[379236544,1755207044108,-453.541334,0.000249,7]
[379236545,1755207044150,-151.0,0.000249,7]
[379236546,1755207044175,-151.0,0.000249,7]
[379236547,1755207044187,-4700.0,0.000249,9]
[379236548,1755207044197,-193.46271,0.000249,7]
[379236549,1755207044208,-193.46271,0.000249,7]
[379236550,1755207044219,-406372.127605,0.000249,2]
[379236551,1755207044229,-17201.36712668,0.000249,2]
[379236552,1755207044239,-150.0,0.00024904,4]
[379236553,1755207044250,-150.0,0.00024915,4]
[379236554,1755207044261,-150.0,0.00024915,4]
[379236555,1755207044270,-150.0,0.00024927,4]
[379236556,1755207044279,-150.0,0.00024929,4]
[379236557,1755207044289,-150.0,0.00024936,4]
[379236558,1755207044299,-294.26829438,0.00024945,2]
[379236559,1755207044310,-150.0,0.00024951,4]
[379236560,1755207044319,-313.37886092,0.00024951,2]
[379236561,1755207044329,-150.0,0.00024956,4]
[379236562,1755207044339,-150.0,0.00024958,4]
[379236563,1755207044348,-150.0,0.00024958,4]
[379236564,1755207044357,-150.0,0.00024979,4]
[379236565,1755207044366,-150.0,0.00024979,4]
[379236566,1755207044376,-150.0,0.00024984,4]
[379236567,1755207044385,-404.39265142,0.0002499,2]
[379236568,1755207044395,-150.0,0.00024997,4]
[379236569,1755207044405,-1744.00532137,0.00025,2]
[379236570,1755207044414,-4684.996435,0.00025,2]
[379236571,1755207044423,-2974.1944643,0.00025,2]
[379236572,1755207044434,-3159.07668543,0.00025,2]
[379236573,1755207044443,-19330.14274264,0.00025,2]
[379236574,1755207044452,-3117.89519791,0.00025,7]
[379236575,1755207044462,-1039.96385381,0.00025,2]
[379236576,1755207044471,-150.0,0.00025007,4]
[379236577,1755207044481,-15000.0,0.0002501,2]
[379236578,1755207044491,-150.0,0.00025012,4]
[379236579,1755207044501,-150.0,0.00025013,4]
[379236580,1755207044511,-150.0,0.00025039,4]
[379236581,1755207044525,-150.0,0.00025042,4]
[379236582,1755207044535,-150.0,0.00025044,4]
[379236583,1755207044545,-504.0,0.00025059,2]
[379236584,1755207044555,-500.0,0.00025059,2]
[379236585,1755207044565,-500.0,0.00025059,2]
[379236586,1755207044575,-150.0,0.00025062,4]
[379236587,1755207044584,-150.0,0.00025062,4]
[379236588,1755207044594,-348.53,0.00025067,2]
[379236589,1755207044604,-150.0,0.00025069,4]
[379236590,1755207044614,-150.0,0.00025071,4]
[379236591,1755207044625,-150.0,0.00025074,2]
[379236592,1755207044635,-500.0,0.00025074,2]
[379236593,1755207044647,-500.0,0.00025074,2]
[379236594,1755207044657,-150.0,0.00025074,4]
[379236595,1755207044668,-150.0,0.00025074,4]
[379236596,1755207044677,-150.0,0.00025079,4]
[379236597,1755207044688,-220.71,0.0002509,2]
[379236598,1755207044697,-150.0,0.00025091,4]
[379236599,1755207044707,-500.0,0.00025093,2]
[379236600,1755207044717,-500.0,0.00025093,2]
[379236601,1755207044728,-6280.0,0.00025093,2]
[379236602,1755207044738,-150.0,0.00025093,2]
[379236603,1755207044748,-500.0,0.00025093,2]
[379236604,1755207044758,-150.0,0.00025094,4]
[379236605,1755207044768,-150.0,0.000251,4]
[379236606,1755207044778,-150.0,0.00025114,4]
[379236607,1755207044787,-1363.59096306,0.0002512,2]
[379236608,1755207044797,-150.0,0.00025129,4]
[379236609,1755207044807,-168.22,0.00025133,2]
[379236610,1755207044816,-150.0,0.00025138,4]
[379236611,1755207044826,-150.0,0.0002515,4]
[379236612,1755207044835,-150.0,0.00025158,4]
[379236613,1755207044845,-150.0,0.0002516,4]
[379236614,1755207044855,-150.0,0.00025167,4]
[379236615,1755207044864,-150.0,0.00025167,4]
[379236616,1755207044874,-500.0,0.00025174,2]
[379236617,1755207044883,-150.0,0.00025176,4]
[379236618,1755207044892,-150.0,0.00025185,4]
[379236619,1755207044901,-150.0,0.00025187,4]
[379236620,1755207044911,-150.0,0.0002519,4]
[379236621,1755207044920,-24827.19796834,0.00025199,2]
[379236622,1755207044929,-1464.0,0.000252,2]
[379236623,1755207044939,-150.0,0.00025215,4]
[379236624,1755207044948,-4270.16459985,0.00025219,2]
[379236625,1755207044958,-150.0,0.00025222,4]
[379236626,1755207044968,-9579.22880736,0.00025224,2]
[379236627,1755207044977,-1000.0,0.00025229,2]
[379236628,1755207044986,-150.0,0.00025231,4]
[379236629,1755207044995,-150.0,0.00025234,4]
[379236630,1755207045005,-150.0,0.00025234,4]
[379236631,1755207045015,-158.51367142,0.00025236,2]
[379236632,1755207045024,-150.0,0.00025244,4]
[379236633,1755207045033,-150.0,0.0002525,4]
[379236634,1755207045043,-150.0,0.0002525,4]
[379236635,1755207045053,-150.0,0.00025258,4]
[379236636,1755207045063,-151.0,0.00025267,2]
[379236637,1755207045072,-150.0,0.00025271,4]
[379236638,1755207045082,-150.0,0.00025271,4]
[379236639,1755207045093,-150.0,0.00025273,4]
[379236640,1755207045103,-1500.0,0.00025276,2]
[379236641,1755207045114,-1500.0,0.00025276,2]
[379236642,1755207045125,-1500.0,0.00025276,2]
[379236643,1755207045136,-572.49417322,0.00025276,2]
[379236644,1755207045146,-1374.39866312,0.00025276,2]
[379236645,1755207045156,-1649.12039649,0.00025276,2]
[379236646,1755207045166,-1500.0,0.00025276,2]
[379236647,1755207045175,-150.0,0.00025278,4]
[379236648,1755207045184,-150.0,0.00025293,4]
[379236649,1755207045195,-379.94766,0.000253,2]
[379236650,1755207045204,-5513.0,0.000253,3]
[379236651,1755207045213,-150.0,0.00025302,4]
[379236652,1755207045224,-600.0,0.00025311,2]
[379236653,1755207045233,-151.0,0.00025311,2]
[379236654,1755207045243,-158.96173231,0.00025311,2]
[379236655,1755207045254,-151.0,0.00025311,2]
[379236656,1755207045264,-1000.0,0.00025321,2]
[379236657,1755207045273,-150.0,0.00025325,4]
[379236658,1755207045283,-1000.0,0.0002533,2]
[379236659,1755207045292,-150.0,0.00025331,4]
[379236660,1755207045303,-504.0,0.00025333,2]
[379236661,1755207045315,-500.0,0.00025333,2]
[379236662,1755207045325,-500.0,0.00025333,2]
[379236663,1755207045337,-150.0,0.00025341,4]
[379236664,1755207045347,-150.0,0.00025341,4]
[379236665,1755207045357,-150.0,0.00025341,4]
[379236666,1755207045366,-150.0,0.00025341,4]
[379236667,1755207045376,-150.0,0.00025341,4]
[379236668,1755207045385,-515.69296796,0.00025348,2]
[379236669,1755207045394,-1001.78962055,0.00025348,2]
[379236670,1755207045404,-1000.0,0.00025348,2]
[379236671,1755207045413,-1000.0,0.00025348,2]
[379236672,1755207045423,-1000.0,0.00025348,2]
[379236673,1755207045433,-233.0,0.00025348,2]
[379236674,1755207045443,-500.0,0.00025348,2]
[379236675,1755207045452,-500.0,0.00025348,2]
[379236676,1755207045462,-150.0,0.0002536,4]
[379236677,1755207045471,-150.0,0.00025364,4]
[379236678,1755207045482,-1000.0,0.00025365,2]
[379236679,1755207045491,-500.0,0.00025367,2]
[379236680,1755207045501,-500.0,0.00025367,2]
[379236681,1755207045510,-6280.0,0.00025367,2]
[379236682,1755207045521,-500.0,0.00025367,2]
[379236683,1755207045530,-154.9,0.00025368,2]
[379236684,1755207045539,-150.0,0.00025372,4]
[379236685,1755207045549,-150.0,0.00025375,4]
[379236686,1755207045558,-150.0,0.00025375,4]
[379236687,1755207045568,-1017.45545587,0.00025379,2]
[379236688,1755207045577,-1500.0,0.00025379,2]
[379236689,1755207045586,-1500.0,0.00025379,2]
[379236691,1755207045596,-1500.0,0.00025379,2]
[379236694,1755207045605,-1500.0,0.00025379,2]
[379236696,1755207045615,-1500.0,0.00025379,2]
[379236698,1755207045624,-1500.0,0.00025379,2]
[379236700,1755207045633,-1500.0,0.00025379,2]
[379236702,1755207045643,-1500.0,0.00025379,2]
[379236704,1755207045656,-324.16501479,0.00025379,2]
[379236706,1755207045665,-150.0,0.00025386,4]
[379236708,1755207045675,-150.0,0.00025389,4]
[379236710,1755207045685,-150.0,0.00025394,4]
[379236712,1755207045694,-150.0,0.00025394,4]
[379236714,1755207045703,-154.9,0.00025405,2]
[379236716,1755207045713,-168.26,0.00025411,2]
[379236718,1755207045724,-150.0,0.00025418,4]
[379236720,1755207045734,-150.0,0.00025419,4]
[379236722,1755207045743,-313.37886092,0.0002542,2]
[379236723,1755207045753,-150.0,0.00025423,4]
[379236724,1755207045764,-150.0,0.00025431,4]
[379236725,1755207045773,-150.0,0.00025436,4]
[379236726,1755207045783,-154.9,0.00025443,2]
[379236727,1755207045793,-150.0,0.00025447,4]
[379236728,1755207045803,-500.0,0.00025448,2]
[379236729,1755207045812,-158.36,0.0002546,2]
[379236730,1755207045822,-150.0,0.00025465,4]
[379236731,1755207045831,-150.0,0.00025475,4]
[379236732,1755207045841,-760.25,0.00025479,2]
[379236733,1755207045850,-150.0,0.0002548,4]
[379236734,1755207045860,-150.0,0.0002548,4]
[379236735,1755207045870,-452.80970839,0.00025487,2]
[379236736,1755207045880,-150.0,0.00025491,4]
[379236737,1755207045890,-356.0,0.00025501,3]
[379236738,1755207045899,-150.0,0.00025504,4]
[379236739,1755207045909,-150.0,0.00025505,4]
[379236740,1755207045918,-226.38,0.00025505,2]
[379236741,1755207045928,-150.0,0.00025507,4]
[379236742,1755207045937,-150.0,0.00025512,4]
[379236743,1755207045947,-150.0,0.00025522,4]
[379236744,1755207045957,-150.0,0.00025522,4]
[379236745,1755207045966,-150.0,0.00025533,4]
[379236746,1755207045976,-150.0,0.00025554,4]
[379236747,1755207045986,-150.0,0.00025554,4]
[379236748,1755207045995,-150.0,0.00025559,4]
[379236749,1755207046005,-1000.0,0.00025562,2]
[379236750,1755207046017,-150.0,0.00025562,4]
[379236751,1755207046026,-150.0,0.00025579,4]
[379236752,1755207046036,-150.0,0.00025584,4]
[379236753,1755207046046,-150.0,0.00025584,4]
[379236754,1755207046056,-150.0,0.00025587,4]
[379236755,1755207046066,-150.0,0.00025591,4]
[379236756,1755207046076,-150.0,0.00025606,4]
[379236757,1755207046086,-504.0,0.00025607,2]
[379236758,1755207046095,-208.93862273,0.00025607,2]
[379236759,1755207046105,-500.0,0.00025607,2]
[379236760,1755207046115,-170.0,0.00025608,2]
[379236761,1755207046125,-150.0,0.00025612,4]
[379236762,1755207046135,-150.0,0.0002562,4]
[379236763,1755207046145,-500.0,0.00025622,2]